[Event "Rapid Tournament (RAP)"]
[Site "Biel, Switzerland"]
[Date "2026.07.12"]
[Round "6.45"]
[White "Schmied, Stefan"]
[Black "Filimonov, Arsenii"]
[Result "1/2-1/2"]
[TimeControl "15 + 5"]
[WhiteTitle "-"]
[BlackTitle "-"]
[WhiteFideId "1335804"]
[BlackFideId "34171584"]
[WhiteElo "1778"]
[BlackElo "1843"]

1. e4 {[%clk 00:15:09]} c6 {[%clk 00:15:05]} {[%emt 00:00:06]} 2. d4 {[%clk
00:15:13]} d5 {[%clk 00:15:09]} 3. exd5 {[%clk 00:15:16]} {[%emt 00:00:02]}
cxd5 {[%clk 00:15:13]} 4. Bd3 {[%clk 00:15:19]} {[%emt 00:00:02]} Nc6 {[%clk
00:15:16]} {[%emt 00:00:02]} 5. c3 {[%clk 00:15:22]} {[%emt 00:00:01]} Nf6
{[%clk 00:15:18]} {[%emt 00:00:02]} 6. Bf4 {[%clk 00:15:26]} {[%emt 00:00:02]}
g6 {[%clk 00:15:08]} {[%emt 00:00:15]} 7. Nf3 {[%clk 00:15:24]} {[%emt
00:00:06]} Bg7 {[%clk 00:15:10]} {[%emt 00:00:04]} 8. Nbd2 {[%clk 00:15:25]}
{[%emt 00:00:04]} Nh5 {[%emt 00:00:34]} 9. Bg3 Nxg3 {[%clk 00:14:41]} 10. hxg3
{[%clk 00:14:47]} Qb6 {[%clk 00:13:28]} {[%emt 00:02:07]} 11. Qb3 {[%clk
00:14:48]} Qxb3 {[%clk 00:13:16]} {[%emt 00:00:25]} 12. axb3 {[%clk 00:14:51]}
Bf5 {[%clk 00:12:18]} {[%emt 00:01:05]} 13. Bxf5 {[%clk 00:14:46]} gxf5 {[%clk
00:12:21]} {[%emt 00:00:12]} 14. b4 {[%clk 00:13:13]} b6 {[%clk 00:10:56]}
{[%emt 00:03:09]} 15. Ke2 {[%clk 00:12:48]} h6 {[%clk 00:10:06]} {[%emt
00:01:24]} 16. Ra6 {[%clk 00:10:20]} Kd7 {[%clk 00:09:41]} {[%emt 00:03:04]} 17.
Rha1 {[%clk 00:10:10]} Kc7 {[%clk 00:06:45]} {[%emt 00:03:15]} 18. b5 {[%clk
00:09:29]} Na5 {[%clk 00:06:44]} {[%emt 00:00:53]} 19. b4 {[%clk 00:09:31]} Nb7
{[%clk 00:06:19]} {[%emt 00:00:32]} 20. Rxa7 {[%clk 00:09:25]} Rxa7 {[%clk
00:06:22]} {[%emt 00:00:13]} 21. Rxa7 {[%clk 00:09:28]} Kb8 {[%clk 00:05:48]}
{[%emt 00:00:41]} 22. Ra6 {[%clk 00:09:22]} Kc7 {[%clk 00:05:51]} {[%emt
00:00:13]} 23. Ne5 {[%clk 00:07:46]} Bxe5 {[%clk 00:05:45]} {[%emt 00:01:51]}
24. dxe5 {[%clk 00:07:50]} Rb8 {[%clk 00:04:35]} {[%emt 00:01:17]} 25. Nf3
{[%clk 00:06:12]} Nd8 {[%clk 00:04:07]} {[%emt 00:02:16]} 26. Nd4 {[%clk
00:06:13]} e6 {[%clk 00:03:53]} {[%emt 00:00:22]} 27. Kf3 {[%clk 00:04:27]} Kb7
{[%clk 00:03:39]} {[%emt 00:02:11]} 28. Ra1 {[%clk 00:04:26]} Rc8 {[%clk
00:03:06]} {[%emt 00:00:44]} 29. Ne2 {[%clk 00:04:22]} Rc4 {[%clk 00:02:39]}
{[%emt 00:00:42]} 30. Rh1 {[%clk 00:04:09]} d4 {[%clk 00:02:11]} {[%emt
00:00:50]} 31. cxd4 {[%clk 00:03:37]} Rxb4 {[%clk 00:02:13]} {[%emt 00:00:40]}
32. Rxh6 {[%clk 00:03:32]} Rxb5 {[%clk 00:02:07]} {[%emt 00:00:22]} 1/2-1/2

[Event "Rapid Tournament (RAP)"]
[Site "Biel, Switzerland"]
[Date "2026.07.12"]
[Round "6.46"]
[White "Brixius, Dirk"]
[Black "Huang, Hsuan-Chen"]
[Result "0-1"]
[TimeControl "15 + 5"]
[WhiteTitle "-"]
[BlackTitle "-"]
[WhiteFideId "12909734"]
[BlackFideId "16303121"]
[WhiteElo "1821"]
[BlackElo "1648"]

1. c4 {[%clk 00:15:09]} Nf6 {[%clk 00:15:05]} {[%emt 00:00:06]} 2. Nc3 {[%clk
00:15:13]} {[%emt 00:00:01]} e6 {[%clk 00:15:09]} {[%emt 00:00:01]} 3. d4
{[%clk 00:15:06]} {[%emt 00:00:12]} Bb4 {[%clk 00:15:05]} {[%emt 00:00:09]} 4.
a3 {[%clk 00:14:38]} {[%emt 00:00:33]} Bxc3+ {[%clk 00:15:04]} {[%emt
00:00:06]} 5. bxc3 {[%emt 00:00:03]} Ne4 {[%clk 00:14:45]} {[%emt 00:00:22]} 6.
Qd3 {[%clk 00:14:03]} {[%emt 00:00:44]} f5 {[%clk 00:14:47]} {[%emt 00:00:03]}
7. g3 {[%clk 00:13:42]} {[%emt 00:00:26]} b6 {[%clk 00:14:28]} {[%emt
00:00:25]} 8. f3 {[%clk 00:13:04]} {[%emt 00:00:43]} Nd6 {[%clk 00:14:05]}
{[%emt 00:00:27]} 9. Nh3 {[%clk 00:12:57]} {[%emt 00:00:11]} Ba6 {[%clk
00:13:30]} {[%emt 00:00:41]} 10. Bg5 {[%clk 00:12:22]} {[%emt 00:00:40]} Qc8
{[%clk 00:13:34]} {[%emt 00:00:01]} 11. e4 {[%clk 00:11:09]} {[%emt 00:01:19]}
Bxc4 {[%clk 00:13:05]} {[%emt 00:00:33]} 12. Qe3 {[%clk 00:11:06]} {[%emt
00:00:07]} Qa6 {[%clk 00:12:43]} {[%emt 00:00:28]} 13. exf5 {[%clk 00:10:17]}
{[%emt 00:00:54]} Nxf5 {[%clk 00:12:35]} {[%emt 00:00:13]} 14. Bxc4 {[%clk
00:10:06]} {[%emt 00:00:16]} Qxc4 {[%clk 00:12:03]} {[%emt 00:00:36]} 15. Qd2
{[%clk 00:09:55]} {[%emt 00:00:17]} Nc6 {[%clk 00:11:36]} {[%emt 00:00:32]} 16.
Kf2 {[%clk 00:09:19]} {[%emt 00:00:41]} O-O {[%clk 00:10:19]} {[%emt 00:01:22]}
17. Rhe1 {[%clk 00:09:04]} {[%emt 00:00:20]} Rae8 {[%clk 00:08:40]} {[%emt
00:01:44]} 18. Bf4 {[%clk 00:09:00]} {[%emt 00:00:09]} d6 {[%clk 00:07:39]}
{[%emt 00:01:06]} 19. Re4 {[%clk 00:08:37]} {[%emt 00:00:28]} e5 {[%clk
00:06:06]} {[%emt 00:01:38]} 20. dxe5 {[%clk 00:08:21]} {[%emt 00:00:21]} Qc5+
{[%clk 00:06:10]} {[%emt 00:00:01]} 21. Be3 {[%clk 00:08:25]} Nxe3 {[%clk
00:06:13]} {[%emt 00:00:02]} 22. Qxe3 {[%clk 00:08:17]} {[%emt 00:00:13]} Qxe3+
{[%clk 00:05:05]} {[%emt 00:01:13]} 23. Kxe3 {[%clk 00:08:08]} {[%emt
00:00:13]} Nxe5 {[%clk 00:05:06]} {[%emt 00:00:05]} 24. Rf1 {[%clk 00:07:40]}
{[%emt 00:00:32]} d5 {[%clk 00:05:09]} {[%emt 00:00:04]} 25. Rf4 {[%clk
00:07:07]} {[%emt 00:00:37]} Ng6+ {[%clk 00:05:12]} {[%emt 00:00:02]} 26. Kd4
{[%clk 00:07:05]} {[%emt 00:00:07]} Nxf4 {[%clk 00:05:12]} {[%emt 00:00:05]} 27.
Nxf4 {[%clk 00:07:08]} {[%emt 00:00:02]} Rf5 {[%clk 00:04:42]} {[%emt
00:00:34]} 28. Nd3 {[%clk 00:06:37]} {[%emt 00:00:36]} c5+ {[%clk 00:04:45]}
{[%emt 00:00:03]} 29. Nxc5 {[%clk 00:06:33]} {[%emt 00:00:09]} bxc5+ {[%clk
00:04:49]} {[%emt 00:00:02]} 30. Kxc5 {[%clk 00:06:36]} Rc8+ {[%clk 00:04:35]}
{[%emt 00:00:20]} 31. Kd4 {[%clk 00:06:39]} {[%emt 00:00:02]} Rc4+ {[%clk
00:04:39]} 32. Kd3 {[%clk 00:06:40]} {[%emt 00:00:04]} Rf6 {[%clk 00:04:43]}
{[%emt 00:00:01]} 33. Rf2 {[%clk 00:06:33]} {[%emt 00:00:12]} Rfc6 {[%clk
00:04:47]} {[%emt 00:00:01]} 34. Rc2 {[%clk 00:06:35]} {[%emt 00:00:02]} d4
{[%clk 00:04:51]} {[%emt 00:00:01]} 35. Ke4 {[%clk 00:06:32]} {[%emt 00:00:09]}
Rxc3 {[%clk 00:04:54]} {[%emt 00:00:02]} 36. Rb2 {[%clk 00:06:32]} {[%emt
00:00:04]} d3 {[%clk 00:04:58]} {[%emt 00:00:02]} 37. Rb8+ {[%clk 00:06:33]}
{[%emt 00:00:04]} Kf7 {[%clk 00:05:02]} {[%emt 00:00:01]} 38. Rd8 {[%clk
00:06:35]} {[%emt 00:00:03]} Re6+ {[%clk 00:04:47]} {[%emt 00:00:20]} 39. Kf5
{[%clk 00:06:38]} {[%emt 00:00:02]} Rc5+ {[%clk 00:04:51]} {[%emt 00:00:01]} 40.
Kg4 {[%clk 00:06:38]} {[%emt 00:00:05]} h5+ {[%clk 00:04:50]} {[%emt 00:00:06]}
41. Kh4 {[%clk 00:06:29]} {[%emt 00:00:13]} Rc4+ {[%clk 00:04:52]} {[%emt
00:00:04]} 42. f4 {[%clk 00:06:16]} {[%emt 00:00:18]} Rc3 {[%clk 00:04:39]}
{[%emt 00:00:18]} 43. Rd7+ {[%clk 00:06:15]} {[%emt 00:00:06]} Re7 {[%clk
00:04:43]} 44. Rd5 {[%clk 00:06:12]} {[%emt 00:00:09]} Rxa3 {[%clk 00:04:46]}
{[%emt 00:00:03]} 45. Rxh5 {[%clk 00:06:08]} {[%emt 00:00:08]} Ra2 {[%clk
00:04:49]} {[%emt 00:00:02]} 46. Rf5+ {[%clk 00:06:07]} {[%emt 00:00:06]} Kg6
{[%clk 00:04:49]} {[%emt 00:00:04]} 47. Kg4 {[%clk 00:06:11]} {[%emt 00:00:02]}
Rd7 {[%clk 00:04:46]} {[%emt 00:00:08]} 48. h4 {[%clk 00:06:04]} {[%emt
00:00:12]} d2 {[%clk 00:04:48]} {[%emt 00:00:03]} 49. Rg5+ {[%clk 00:06:04]}
{[%emt 00:00:05]} Kf7 {[%clk 00:04:51]} {[%emt 00:00:02]} 50. Rf5+ {[%clk
00:06:03]} {[%emt 00:00:06]} Kg8 {[%clk 00:04:55]} {[%emt 00:00:01]} 0-1

[Event "Rapid Tournament (RAP)"]
[Site "Biel, Switzerland"]
[Date "2026.07.12"]
[Round "6.47"]
[White "Creux, Francois"]
[Black "Piazza, Carlo"]
[Result "0-1"]
[TimeControl "15 + 5"]
[WhiteTitle "-"]
[BlackTitle "-"]
[WhiteFideId "1357743"]
[BlackFideId "809683"]
[WhiteElo "1668"]
[BlackElo "2076"]

1. e4 {[%clk 00:15:08]} {[%emt 00:00:02]} c5 {[%clk 00:15:09]} {[%emt
00:00:01]} 2. g3 {[%clk 00:15:10]} {[%emt 00:00:03]} Nc6 {[%clk 00:15:10]}
{[%emt 00:00:03]} 3. Bg2 {[%clk 00:15:13]} {[%emt 00:00:01]} g6 {[%clk
00:15:12]} {[%emt 00:00:04]} 4. c3 {[%clk 00:15:16]} {[%emt 00:00:03]} Bg7
{[%clk 00:15:13]} {[%emt 00:00:03]} 5. Ne2 {[%clk 00:15:18]} {[%emt 00:00:03]}
e6 {[%clk 00:14:05]} {[%emt 00:01:13]} 6. d4 {[%clk 00:15:16]} {[%emt
00:00:07]} cxd4 {[%clk 00:14:08]} {[%emt 00:00:02]} 7. cxd4 {[%clk 00:15:19]}
{[%emt 00:00:02]} d5 {[%clk 00:14:11]} {[%emt 00:00:03]} 8. e5 {[%clk
00:15:14]} {[%emt 00:00:10]} Nge7 {[%clk 00:14:04]} {[%emt 00:00:12]} 9. Nbc3
{[%clk 00:15:12]} {[%emt 00:00:06]} a6 {[%clk 00:14:04]} {[%emt 00:00:05]} 10.
Bg5 {[%clk 00:15:06]} {[%emt 00:00:10]} h6 {[%clk 00:14:07]} {[%emt 00:00:03]}
11. Be3 {[%clk 00:13:51]} {[%emt 00:01:20]} Nf5 {[%clk 00:14:05]} {[%emt
00:00:07]} 12. O-O {[%clk 00:13:44]} {[%emt 00:00:12]} Bd7 {[%clk 00:13:47]}
{[%emt 00:00:23]} 13. Qd2 {[%clk 00:12:41]} {[%emt 00:01:08]} Na5 {[%clk
00:13:45]} {[%emt 00:00:07]} 14. b3 {[%clk 00:12:42]} {[%emt 00:00:04]} Rc8
{[%clk 00:13:06]} {[%emt 00:00:45]} 15. Rac1 {[%clk 00:12:44]} {[%emt
00:00:02]} b5 {[%clk 00:12:23]} {[%emt 00:00:48]} 16. Nf4 {[%clk 00:12:16]}
{[%emt 00:00:33]} Nc6 {[%clk 00:11:49]} {[%emt 00:00:40]} 17. Nce2 {[%clk
00:12:09]} {[%emt 00:00:11]} Nce7 {[%clk 00:11:17]} {[%emt 00:00:38]} 18. g4
{[%clk 00:10:59]} {[%emt 00:01:15]} Nxe3 {[%clk 00:10:07]} {[%emt 00:01:14]} 19.
fxe3 {[%clk 00:10:40]} {[%emt 00:00:24]} Rxc1 {[%clk 00:09:11]} {[%emt
00:01:02]} 20. Rxc1 {[%clk 00:10:41]} {[%emt 00:00:03]} Nc6 {[%clk 00:09:05]}
{[%emt 00:00:12]} 21. h3 {[%clk 00:10:16]} {[%emt 00:00:29]} O-O {[%clk
00:08:54]} {[%emt 00:00:17]} 22. e4 {[%clk 00:09:46]} {[%emt 00:00:34]} dxe4
{[%clk 00:08:49]} {[%emt 00:00:10]} 23. Bxe4 {[%clk 00:09:48]} {[%emt
00:00:03]} Qb6 {[%clk 00:08:48]} {[%emt 00:00:07]} 24. Kg2 {[%clk 00:09:40]}
{[%emt 00:00:13]} Rd8 {[%clk 00:08:25]} {[%emt 00:00:27]} 25. Qc3 {[%clk
00:09:26]} {[%emt 00:00:19]} Be8 {[%clk 00:07:52]} {[%emt 00:00:38]} 26. Bxc6
{[%clk 00:09:04]} {[%emt 00:00:27]} Rc8 {[%clk 00:07:52]} {[%emt 00:00:06]} 27.
d5 {[%clk 00:08:38]} {[%emt 00:00:30]} g5 {[%clk 00:07:20]} {[%emt 00:00:36]}
28. Nh5 {[%clk 00:07:40]} {[%emt 00:01:04]} exd5 {[%clk 00:07:11]} {[%emt
00:00:14]} 29. Nxg7 {[%clk 00:06:41]} {[%emt 00:01:04]} Rxc6 {[%clk 00:06:21]}
{[%emt 00:00:55]} 30. Qd2 {[%clk 00:06:23]} {[%emt 00:00:23]} Rxc1 31. Nxc1
{[%clk 00:06:18]} Kxg7 {[%clk 00:06:10]} {[%emt 00:00:07]} 32. Kg3 {[%clk
00:05:30]} {[%emt 00:00:51]} Qg1+ {[%clk 00:05:58]} {[%emt 00:00:18]} 33. Kf3
{[%clk 00:05:19]} {[%emt 00:00:16]} Bc6 {[%clk 00:05:52]} {[%emt 00:00:12]} 34.
Ke2 {[%clk 00:03:42]} {[%emt 00:01:42]} b4 {[%clk 00:05:02]} {[%emt 00:00:55]}
35. Qe3 {[%clk 00:02:55]} {[%emt 00:00:51]} Bb5+ {[%clk 00:04:43]} {[%emt
00:00:24]} 36. Kd2 {[%clk 00:02:51]} {[%emt 00:00:09]} Qh2+ {[%clk 00:03:32]}
{[%emt 00:01:16]} 37. Ne2 {[%clk 00:02:54]} {[%emt 00:00:02]} d4 {[%clk
00:02:53]} {[%emt 00:00:45]} 38. Qf3 {[%clk 00:02:25]} {[%emt 00:00:34]} Qxe5
{[%clk 00:02:40]} {[%emt 00:00:17]} 39. Ng3 {[%clk 00:01:58]} {[%emt 00:00:31]}
d3 {[%clk 00:01:02]} {[%emt 00:01:44]} 40. Nf5+ {[%clk 00:00:37]} {[%emt
00:01:26]} Kg6 {[%clk 00:00:47]} {[%emt 00:00:21]} 41. Ng3 {[%clk 00:00:21]}
{[%emt 00:00:20]} Qb2+ {[%clk 00:00:40]} {[%emt 00:00:12]} 42. Ke3 {[%clk
00:00:24]} {[%emt 00:00:01]} Qe5+ {[%clk 00:00:38]} {[%emt 00:00:07]} 43. Kd2
{[%clk 00:00:27]} {[%emt 00:00:02]} Qc3+ {[%clk 00:00:42]} {[%emt 00:00:02]} 44.
Kd1 {[%clk 00:00:06]} {[%emt 00:00:25]} Qc2+ {[%clk 00:00:46]} {[%emt
00:00:01]} 45. Ke1 {[%emt 00:00:07]} 0-1

[Event "Rapid Tournament (RAP)"]
[Site "Biel, Switzerland"]
[Date "2026.07.12"]
[Round "6.48"]
[White "Schneggenburger, Miguel"]
[Black "Javet, Blaise"]
[Result "1/2-1/2"]
[TimeControl "15 + 5"]
[WhiteTitle "-"]
[BlackTitle "-"]
[WhiteFideId "1361279"]
[BlackFideId "1305026"]
[WhiteElo "1742"]
[BlackElo "1980"]

1. d4 {[%clk 00:15:07]} {[%emt 00:00:02]} Nf6 {[%clk 00:14:43]} {[%emt
00:00:28]} 2. c4 {[%clk 00:15:08]} {[%emt 00:00:04]} g6 {[%clk 00:14:46]}
{[%emt 00:00:01]} 3. Nf3 {[%clk 00:15:00]} {[%emt 00:00:14]} Bg7 {[%clk
00:14:50]} 4. g3 {[%clk 00:14:48]} {[%emt 00:00:16]} d6 {[%clk 00:14:54]}
{[%emt 00:00:02]} 5. Bg2 {[%clk 00:14:50]} {[%emt 00:00:02]} O-O {[%clk
00:14:56]} {[%emt 00:00:03]} 6. O-O {[%clk 00:14:50]} {[%emt 00:00:05]} c6
{[%clk 00:14:58]} {[%emt 00:00:04]} 7. Nc3 {[%clk 00:14:45]} {[%emt 00:00:09]}
Nbd7 {[%clk 00:15:01]} {[%emt 00:00:03]} 8. Qc2 {[%clk 00:13:45]} {[%emt
00:01:05]} e5 {[%clk 00:14:54]} {[%emt 00:00:12]} 9. Bg5 {[%clk 00:12:19]}
{[%emt 00:01:28]} Qc7 {[%clk 00:14:33]} {[%emt 00:00:29]} 10. Rac1 {[%clk
00:11:59]} {[%emt 00:00:24]} Re8 {[%clk 00:14:18]} {[%emt 00:00:21]} 11. dxe5
{[%clk 00:11:22]} {[%emt 00:00:43]} dxe5 {[%clk 00:14:07]} {[%emt 00:00:15]} 12.
e4 {[%clk 00:10:19]} {[%emt 00:01:08]} Nc5 {[%clk 00:13:46]} {[%emt 00:00:26]}
13. Be3 {[%clk 00:09:56]} {[%emt 00:00:27]} Ne6 {[%clk 00:13:42]} {[%emt
00:00:10]} 14. Rfd1 {[%clk 00:09:46]} {[%emt 00:00:14]} Ng4 {[%clk 00:13:25]}
{[%emt 00:00:23]} 15. Bd2 {[%clk 00:08:50]} {[%emt 00:01:00]} Qb6 {[%clk
00:10:18]} {[%emt 00:03:13]} 16. Be1 {[%clk 00:08:28]} {[%emt 00:00:27]} Nd4
{[%clk 00:10:10]} {[%emt 00:00:14]} 17. Nxd4 {[%clk 00:08:11]} {[%emt
00:00:21]} exd4 {[%clk 00:10:13]} {[%emt 00:00:02]} 18. Na4 {[%clk 00:07:25]}
{[%emt 00:00:51]} Qc7 {[%clk 00:10:14]} {[%emt 00:00:04]} 19. h3 {[%clk
00:06:54]} {[%emt 00:00:36]} Ne5 {[%clk 00:09:57]} {[%emt 00:00:22]} 20. f4
{[%clk 00:06:31]} {[%emt 00:00:27]} Nd7 {[%clk 00:09:30]} {[%emt 00:00:32]} 21.
b4 {[%clk 00:06:06]} {[%emt 00:00:30]} Nb6 {[%clk 00:06:10]} {[%emt 00:03:26]}
22. Bf2 {[%clk 00:04:54]} {[%emt 00:01:16]} Rd8 {[%clk 00:04:34]} {[%emt
00:01:41]} 23. e5 {[%clk 00:04:38]} {[%emt 00:00:22]} Bf5 {[%clk 00:04:31]}
{[%emt 00:00:08]} 24. Qb3 {[%clk 00:04:17]} {[%emt 00:00:26]} d3 {[%clk
00:04:27]} {[%emt 00:00:09]} 25. g4 {[%clk 00:04:03]} {[%emt 00:00:19]} Be6
{[%clk 00:04:26]} {[%emt 00:00:06]} 26. Nb2 {[%clk 00:03:44]} {[%emt 00:00:24]}
h5 {[%clk 00:04:02]} {[%emt 00:00:30]} 27. Rxd3 {[%clk 00:03:14]} {[%emt
00:00:34]} hxg4 {[%clk 00:03:36]} {[%emt 00:00:31]} 28. hxg4 {[%clk 00:02:58]}
{[%emt 00:00:21]} Bxg4 {[%clk 00:03:32]} {[%emt 00:00:09]} 29. a4 {[%clk
00:02:45]} {[%emt 00:00:18]} Bf5 {[%clk 00:03:32]} {[%emt 00:00:05]} 30. Rxd8+
{[%clk 00:02:43]} {[%emt 00:00:07]} Rxd8 {[%clk 00:03:35]} {[%emt 00:00:02]} 31.
Rd1 {[%clk 00:02:41]} {[%emt 00:00:07]} Rd7 {[%clk 00:03:00]} {[%emt 00:00:40]}
32. Rxd7 {[%clk 00:02:36]} {[%emt 00:00:10]} Qxd7 {[%clk 00:02:58]} {[%emt
00:00:07]} 33. a5 {[%clk 00:02:33]} {[%emt 00:00:08]} Nc8 {[%clk 00:03:01]}
{[%emt 00:00:02]} 34. Qd1 {[%clk 00:02:32]} {[%emt 00:00:05]} a6 {[%clk
00:02:56]} {[%emt 00:00:11]} 35. Qxd7 {[%clk 00:02:29]} {[%emt 00:00:08]} Bxd7
{[%clk 00:03:00]} 36. Nd3 {[%clk 00:02:18]} {[%emt 00:00:16]} Ne7 {[%clk
00:03:00]} {[%emt 00:00:05]} 37. Be4 {[%clk 00:01:57]} {[%emt 00:00:25]} Nf5
{[%clk 00:02:41]} {[%emt 00:00:24]} 38. Nc5 {[%clk 00:01:53]} {[%emt 00:00:09]}
Bc8 {[%clk 00:02:41]} {[%emt 00:00:05]} 39. Bxf5 {[%clk 00:01:51]} {[%emt
00:00:06]} gxf5 {[%clk 00:02:45]} {[%emt 00:00:02]} 40. Kg2 {[%clk 00:01:37]}
{[%emt 00:00:19]} Kf8 {[%clk 00:02:49]} {[%emt 00:00:02]} 41. Kg3 {[%clk
00:01:21]} {[%emt 00:00:20]} Ke8 {[%clk 00:02:52]} {[%emt 00:00:02]} 42. Bd4
{[%clk 00:01:14]} {[%emt 00:00:11]} Bf8 {[%clk 00:02:45]} {[%emt 00:00:12]} 43.
Kh4 {[%clk 00:01:12]} {[%emt 00:00:08]} Be7+ {[%clk 00:01:55]} {[%emt
00:00:55]} 44. Kh5 {[%clk 00:01:00]} {[%emt 00:00:17]} Kf8 {[%clk 00:01:50]}
{[%emt 00:00:10]} 45. Bf2 {[%clk 00:00:54]} {[%emt 00:00:11]} Kg7 {[%clk
00:01:32]} {[%emt 00:00:23]} 46. Bd4 {[%clk 00:00:39]} {[%emt 00:00:20]} Kf8
{[%clk 00:01:33]} {[%emt 00:00:04]} 47. Bf2 {[%clk 00:00:36]} {[%emt 00:00:08]}
Bxc5 {[%emt 00:00:21]} 48. Kh6 Ke8 49. Bxc5 Be6 {[%emt 00:00:04]} 50. Kg7 Bxc4
{[%emt 00:00:09]} 51. Kf6 Be6 {[%emt 00:00:03]} 1/2-1/2

[Event "Rapid Tournament (RAP)"]
[Site "Biel, Switzerland"]
[Date "2026.07.12"]
[Round "6.49"]
[White "Liengme, Samuel"]
[Black "Ziegler, Andrin"]
[Result "0-1"]
[TimeControl "15 + 5"]
[WhiteTitle "-"]
[BlackTitle "-"]
[WhiteFideId "1368141"]
[BlackFideId "1364138"]
[WhiteElo "1967"]
[BlackElo "1730"]

1. e4 {[%clk 00:15:05]} {[%emt 00:00:04]} c6 {[%clk 00:15:09]} {[%emt
00:00:03]} 2. Nc3 {[%clk 00:15:02]} {[%emt 00:00:07]} d5 {[%clk 00:15:12]}
{[%emt 00:00:02]} 3. Nf3 {[%clk 00:15:05]} {[%emt 00:00:02]} Bg4 {[%clk
00:15:05]} {[%emt 00:00:13]} 4. exd5 {[%clk 00:14:32]} {[%emt 00:00:38]} cxd5
{[%clk 00:15:09]} {[%emt 00:00:01]} 5. d4 {[%clk 00:14:25]} {[%emt 00:00:11]}
Nc6 {[%clk 00:15:02]} {[%emt 00:00:12]} 6. Bf4 {[%clk 00:14:19]} {[%emt
00:00:10]} a6 {[%clk 00:14:40]} {[%emt 00:00:29]} 7. Be2 {[%clk 00:14:13]}
{[%emt 00:00:10]} e6 {[%clk 00:14:22]} {[%emt 00:00:24]} 8. O-O {[%clk
00:14:12]} {[%emt 00:00:04]} Bd6 {[%clk 00:13:56]} {[%emt 00:00:32]} 9. Bxd6
{[%clk 00:13:59]} {[%emt 00:00:18]} Qxd6 {[%clk 00:14:00]} {[%emt 00:00:02]} 10.
Re1 {[%clk 00:13:44]} {[%emt 00:00:19]} Nge7 {[%clk 00:14:03]} {[%emt
00:00:03]} 11. h3 {[%clk 00:13:17]} {[%emt 00:00:31]} Bxf3 {[%clk 00:14:07]}
{[%emt 00:00:02]} 12. Bxf3 {[%clk 00:13:20]} {[%emt 00:00:02]} O-O {[%clk
00:14:07]} {[%emt 00:00:05]} 13. a3 {[%clk 00:12:33]} {[%emt 00:00:52]} Nf5
{[%clk 00:13:55]} {[%emt 00:00:16]} 14. Ne2 {[%clk 00:12:30]} {[%emt 00:00:07]}
Rac8 {[%clk 00:13:33]} {[%emt 00:00:28]} 15. c3 {[%clk 00:12:34]} {[%emt
00:00:02]} b5 {[%clk 00:13:00]} {[%emt 00:00:38]} 16. a4 {[%clk 00:12:20]}
{[%emt 00:00:19]} b4 {[%clk 00:12:33]} {[%emt 00:00:32]} 17. Qd3 {[%clk
00:12:01]} {[%emt 00:00:23]} bxc3 {[%clk 00:12:02]} {[%emt 00:00:37]} 18. bxc3
{[%clk 00:12:00]} {[%emt 00:00:06]} Na5 {[%clk 00:11:25]} {[%emt 00:00:42]} 19.
Ng3 {[%clk 00:09:34]} {[%emt 00:02:30]} Nxg3 {[%clk 00:10:08]} {[%emt
00:01:22]} 20. fxg3 {[%clk 00:09:37]} {[%emt 00:00:03]} Nc4 {[%clk 00:10:11]}
{[%emt 00:00:02]} 21. Be2 {[%clk 00:09:18]} {[%emt 00:00:23]} Rb8 {[%clk
00:09:05]} {[%emt 00:01:12]} 22. Reb1 {[%clk 00:08:56]} {[%emt 00:00:27]} Rxb1+
{[%clk 00:08:36]} {[%emt 00:00:33]} 23. Rxb1 {[%clk 00:08:59]} {[%emt
00:00:02]} Rb8 {[%clk 00:08:36]} {[%emt 00:00:05]} 24. Kh2 {[%clk 00:08:47]}
{[%emt 00:00:17]} g6 {[%clk 00:07:38]} {[%emt 00:01:04]} 25. Rf1 {[%clk
00:08:05]} {[%emt 00:00:47]} Rb2 {[%clk 00:06:39]} {[%emt 00:01:04]} 26. Qf3
{[%clk 00:08:08]} {[%emt 00:00:02]} f5 {[%clk 00:05:30]} {[%emt 00:01:14]} 27.
Bxc4 {[%clk 00:08:11]} {[%emt 00:00:02]} dxc4 {[%clk 00:05:34]} {[%emt
00:00:01]} 28. Qa8+ {[%clk 00:08:13]} {[%emt 00:00:02]} Rb8 {[%clk 00:04:57]}
{[%emt 00:00:42]} 29. Qxa6 {[%clk 00:08:15]} {[%emt 00:00:03]} Qxa6 {[%clk
00:04:59]} {[%emt 00:00:04]} 0-1